[Event "Deloitte NED-ch 2019"]
[Site "Amsterdam"]
[Date "2019.07.01"]
[Round "1.1"]
[White "L'Ami, Erwin"]
[Black "Sokolov, Ivan"]
[Result "1/2-1/2"]
[ECO "C77"]
[WhiteElo "2633"]
[BlackElo "2584"]
[Annotator "ChessBase"]
[PlyCount "82"]
[EventDate "2019.07.01"]
[EventType "tourn"]
[EventCountry "NED"]
[SourceTitle "playchess.com"]
[Source "ChessBase"]
[SourceQuality "1"]
[TimeControl "40/5400+30:1800+30"]

1. e4 {[%emt 0:00:00]} e5 {[%emt 0:02:06]} 2. Nf3 {[%emt 0:00:00]} Nc6 {[%emt 0:00:03]} 3. Bb5 {[%emt 0:00:00]} a6 {[%emt 0:00:06]} 4. Ba4 {[%emt 0:00:09]} Nf6 {[%emt 0:00:25]} 5. O-O {[%emt 0:00:11]} Be7 {[%emt 0:00:07]} 6. d3 {[%emt 0:00:17]} d6 {[%emt 0:00:35]} 7. c3 {[%emt 0:00:23]} O-O {[%emt 0:00:05]} 8. Nbd2 {[%emt 0:00:10]} Nd7 {[%emt 0:00:22]} 9. Bc2 {[%emt 0:05:28]} Nb6 {[%emt 0:02:03]} 10. a4 {[%emt 0:04:09]} a5 {[%emt 0:03:54]} 11. Nc4 {[%emt 0:04:46]} Nxc4 {[%emt 0:02:05]} 12. dxc4 {[%emt 0:00:47]} Kh8 {[%emt 0:01:22]} 13. Re1 {[%emt 0:06:18]} Be6 {[%emt 0:12:03]} 14. b3 {[%emt 0:02:24]} Qd7 {[%emt 0:00:03]} 15. Ng5 {[%emt 0:10:46]} Bxg5 {[%emt 0:02:31]} 16. Bxg5 {[%emt 0:01:05]} b6 {[%emt 0:02:33]} 17. Qd2 {[%emt 0:04:53]} f6 {[%emt 0:01:39]} 18. Be3 {[%emt 0:00:49]} Qf7 {[%emt 0:00:02]} 19. f3 {[%emt 0:04:07]} Ne7 {[%emt 0:05:52]} 20. Qf2 {[%emt 0:01:39]} g5 {[%emt 0:09:16]} 21. Kf1 {[%emt 0:08:53]} Rg8 {[%emt 0:00:51]} 22. g4 {[%emt 0:08:30]} h5 {[%emt 0:02:47]} 23. h3 {[%emt 0:00:53]} Rg7 {[%emt 0:03:51]} 24. Ke2 {[%emt 0:00:49]} Rh7 {[%emt 0:00:06]} 25. Kd2 {[%emt 0:06:12]} Ng6 {[%emt 0:02:36]} 26. Bd3 {[%emt 0:00:58]} Kg7 {[%emt 0:01:04]} 27. Qe2 {[%emt 0:06:36]} Rah8 {[%emt 0:00:57]} 28. Rf1 {[%emt 0:00:08]} hxg4 {[%emt 0:00:26]} 29. hxg4 {[%emt 0:00:06]} Rh3 {[%emt 0:01:59]} 30. Rf2 {[%emt 0:01:08]} Qe7 {[%emt 0:04:15]} 31. Kc2 {[%emt 0:01:31]} Bd7 {[%emt 0:00:44]} 32. Raf1 {[%emt 0:01:24]} Nf4 {[%emt 0:00:48]} 33. Bxf4 {[%emt 0:02:05]} exf4 {[%emt 0:00:02]} 34. Qd2 {[%emt 0:01:18]} Qe5 {[%emt 0:06:51]} 35. Be2 {[%emt 0:01:23]} Qc5 {[%emt 0:00:22]} 36. Kb2 {[%emt 0:01:58]} Kf7 {[%emt 0:11:14]} 37. Qd4 {[%emt 0:07:04]} Ke6 {[%emt 0:00:31]} 38. Qd5+ {[%emt 0:02:23]} Ke7 {[%emt 0:12:57]} 39. Qd4 {[%emt 0:00:44]} Rg3 {[%emt 0:00:11]} 40. Bd1 {[%emt 0:01:16]} Rhh3 {[%emt 0:00:44]} 41. Rd2 {[%emt 0:31:48]} Rh8 {[%emt 0:32:50]} 1/2-1/2

[Event "Deloitte NED-ch 2019"]
[Site "Amsterdam"]
[Date "2019.07.01"]
[Round "1.2"]
[White "Bok, Benjamin"]
[Black "Tiviakov, Sergei"]
[Result "1-0"]
[ECO "E39"]
[WhiteElo "2645"]
[BlackElo "2608"]
[Annotator "ChessBase"]
[PlyCount "67"]
[EventDate "2019.07.01"]
[EventType "tourn"]
[EventCountry "NED"]
[SourceTitle "playchess.com"]
[Source "ChessBase"]
[SourceQuality "1"]
[TimeControl "40/5400+30:1800+30"]

1. d4 {[%emt 0:00:00]} Nf6 {[%emt 0:00:00]} 2. c4 {[%emt 0:00:00]} e6 {[%emt 0:00:00]} 3. Nc3 {[%emt 0:00:00]} Bb4 {[%emt 0:00:00]} 4. Qc2 {[%emt 0:00:00]} c5 {[%emt 0:04:28]} 5. dxc5 {[%emt 0:00:02]} O-O {[%emt 0:00:05]} 6. a3 {[%emt 0:00:06]} Bxc5 {[%emt 0:00:07]} 7. Nf3 {[%emt 0:00:11]} b6 {[%emt 0:00:05]} 8. Bf4 {[%emt 0:00:12]} Bb7 {[%emt 0:00:37]} 9. Rd1 {[%emt 0:00:10]} Nc6 {[%emt 0:00:55]} 10. e3 {[%emt 0:00:13]} Rc8 {[%emt 0:03:03]} 11. Be2 {[%emt 0:18:16]} Be7 {[%emt 0:08:41]} 12. O-O {[%emt 0:17:07]} Na5 {[%emt 0:21:33]} 13. Nb5 {[%emt 0:11:42]} Bxf3 {[%emt 0:33:03]} 14. gxf3 {[%emt 0:25:50]} Nh5 {[%emt 0:00:00]} 15. Bd6 {[%emt 0:04:40]} Nc6 {[%emt 0:00:00]} 16. f4 {[%emt 0:05:31]} Nf6 {[%emt 0:00:00]} 17. Bf3 {[%emt 0:00:48]} a6 {[%emt 0:00:00]} 18. Bxe7 {[%emt 0:00:07]} Qxe7 {[%emt 0:00:00]} 19. Nd6 {[%emt 0:00:05]} Rc7 {[%emt 0:00:00]} 20. Qa4 {[%emt 0:04:22]} Ra8 {[%emt 0:03:58]} 21. b4 {[%emt 0:01:47]} Ne8 {[%emt 0:08:24]} 22. Nxe8 {[%emt 0:00:04]} Qxe8 {[%emt 0:00:54]} 23. Rd6 {[%emt 0:00:06]} e5 {[%emt 0:07:06]} 24. Rfd1 {[%emt 0:01:47]} exf4 {[%emt 0:01:00]} 25. exf4 {[%emt 0:00:10]} g6 {[%emt 0:00:43]} 26. Qb3 {[%emt 0:01:31]} b5 {[%emt 0:03:02]} 27. cxb5 {[%emt 0:06:31]} axb5 {[%emt 0:00:01]} 28. f5 {[%emt 0:00:09]} Kf8 {[%emt 0:03:21]} 29. fxg6 {[%emt 0:01:51]} hxg6 {[%emt 0:00:02]} 30. Qb2 {[%emt 0:00:35]} Kg8 {[%emt 0:02:21]} 31. Bd5 {[%emt 0:00:06]} Ne5 {[%emt 0:01:19]} 32. Bxa8 {[%emt 0:00:57]} Nc4 {[%emt 0:00:03]} 33. Qf6 {[%emt 0:00:15]} Nxd6 {[%emt 0:00:38]} 34. Qxd6 {[%emt 0:00:05]} 1-0

[Event "Deloitte NED-ch 2019"]
[Site "Amsterdam"]
[Date "2019.07.01"]
[Round "1.4"]
[White "Van Foreest, Jorden"]
[Black "Van Foreest, Lucas"]
[Result "1/2-1/2"]
[ECO "D38"]
[WhiteElo "2612"]
[BlackElo "2521"]
[Annotator "ChessBase"]
[PlyCount "130"]
[EventDate "2019.07.01"]
[EventType "tourn"]
[EventCountry "NED"]
[SourceTitle "playchess.com"]
[Source "ChessBase"]
[SourceQuality "1"]
[TimeControl "40/5400+30:1800+30"]

1. d4 {[%emt 0:00:00]} Nf6 {[%emt 0:00:00]} 2. c4 {[%emt 0:00:00]} e6 {[%emt 0:00:03]} 3. Nf3 {[%emt 0:00:16]} d5 {[%emt 0:00:05]} 4. Nc3 {[%emt 0:00:21]} Bb4 {[%emt 0:02:24]} 5. cxd5 {[%emt 0:00:36]} exd5 {[%emt 0:00:16]} 6. Bf4 {[%emt 0:00:06]} O-O {[%emt 0:01:20]} 7. e3 {[%emt 0:05:14]} c5 {[%emt 0:00:32]} 8. dxc5 {[%emt 0:08:30]} Qa5 {[%emt 0:06:13]} 9. Nd2 {[%emt 0:04:44]} Bxc3 {[%emt 0:33:56]} 10. bxc3 {[%emt 0:00:24]} Qxc5 {[%emt 0:00:07]} 11. Rc1 {[%emt 0:10:23]} b6 {[%emt 0:14:59]} 12. Qa4 {[%emt 0:20:09]} Bb7 {[%emt 0:02:13]} 13. Be2 {[%emt 0:02:38]} Nbd7 {[%emt 0:03:47]} 14. O-O {[%emt 0:01:02]} Qe7 {[%emt 0:01:24]} 15. Rfd1 {[%emt 0:04:40]} Rfc8 {[%emt 0:01:10]} 16. h3 {[%emt 0:02:18]} h6 {[%emt 0:00:23]} 17. Bf1 {[%emt 0:01:12]} Nc5 {[%emt 0:07:23]} 18. Qa3 {[%emt 0:01:07]} Nfe4 {[%emt 0:03:17]} 19. c4 {[%emt 0:08:50]} Nxf2 {[%emt 0:01:27]} 20. Re1 {[%emt 0:04:01]} Nfe4 {[%emt 0:01:13]} 21. Nxe4 {[%emt 0:03:00]} Qxe4 {[%emt 0:00:40]} 22. Red1 {[%emt 0:01:29]} Rd8 {[%emt 0:02:14]} 23. Rd4 {[%emt 0:00:42]} Qg6 {[%emt 0:00:44]} 24. cxd5 {[%emt 0:00:20]} Rxd5 {[%emt 0:00:27]} 25. Rcd1 {[%emt 0:01:28]} Rxd4 {[%emt 0:03:09]} 26. exd4 {[%emt 0:02:51]} Ne6 {[%emt 0:00:07]} 27. Be5 {[%emt 0:00:35]} Qe4 {[%emt 0:00:30]} 28. Qg3 {[%emt 0:00:51]} Qd5 {[%emt 0:02:14]} 29. Bd3 {[%emt 0:01:53]} Rf8 {[%emt 0:02:35]} 30. Bc2 {[%emt 0:04:21]} f6 {[%emt 0:06:08]} 31. Bb3 {[%emt 0:01:49]} Qd7 {[%emt 0:00:04]} 32. Bd6 {[%emt 0:02:53]} Rd8 {[%emt 0:01:22]} 33. Bc7 {[%emt 0:03:33]} Re8 {[%emt 0:01:31]} 34. Qd6 {[%emt 0:00:16]} Bc8 {[%emt 0:00:46]} 35. Re1 {[%emt 0:00:36]} Kh8 {[%emt 0:01:23]} 36. Bb8 {[%emt 0:00:07]} Qxd6 {[%emt 0:00:30]} 37. Bxd6 {[%emt 0:00:07]} Bd7 {[%emt 0:00:00]} 38. d5 {[%emt 0:02:20]} Nd4 {[%emt 0:00:52]} 39. Rxe8+ {[%emt 0:00:53]} Bxe8 {[%emt 0:00:02]} 40. Bd1 {[%emt 0:01:30]} Bf7 {[%emt 0:00:43]} 41. Bb8 {[%emt 0:30:10]} Bxd5 {[%emt 0:30:17]} 42. Bxa7 {[%emt 0:00:14]} Bxa2 {[%emt 0:00:05]} 43. Bxb6 {[%emt 0:00:04]} Nc6 {[%emt 0:00:47]} 44. Bf3 {[%emt 0:00:13]} Ne5 {[%emt 0:00:06]} 45. Kf2 {[%emt 0:00:07]} Kg8 {[%emt 0:00:20]} 46. Bd4 {[%emt 0:01:07]} Kf7 {[%emt 0:00:00]} 47. Bc3 {[%emt 0:00:00]} Bb3 {[%emt 0:00:00]} 48. Ke3 {[%emt 0:00:00]} Ke6 {[%emt 0:00:00]} 49. Be2 {[%emt 0:00:00]} Bd5 {[%emt 0:00:00]} 50. Kf2 {[%emt 0:00:00]} Be4 {[%emt 0:00:00]} 51. Bb4 {[%emt 0:00:00]} Ng6 {[%emt 0:00:00]} 52. Bd2 {[%emt 0:00:00]} Nh4 {[%emt 0:00:00]} 53. Bf1 {[%emt 0:00:00]} Kd5 {[%emt 0:00:00]} 54. Bb4 {[%emt 0:00:00]} Ng6 {[%emt 0:00:00]} 55. Ke3 {[%emt 0:00:00]} Nh4 {[%emt 0:00:00]} 56. Kf2 {[%emt 0:00:00]} Ke6 {[%emt 0:00:00]} 57. Bc4+ {[%emt 0:00:00]} Bd5 {[%emt 0:00:00]} 58. Bxd5+ {[%emt 0:00:00]} Kxd5 {[%emt 0:00:00]} 59. Bf8 {[%emt 0:00:00]} g5 {[%emt 0:00:00]} 60. Bxh6 {[%emt 0:00:00]} Ng6 {[%emt 0:00:00]} 61. Kg3 {[%emt 0:00:00]} Ke6 {[%emt 0:00:00]} 62. Kg4 {[%emt 0:00:00]} Nf4 {[%emt 0:00:00]} 63. Bxg5 {[%emt 0:00:00]} fxg5 {[%emt 0:00:00]} 64. Kxg5 {[%emt 0:00:00]} Nxg2 {[%emt 0:00:00]} 65. h4 {[%emt 0:00:00]} Nxh4 {[%emt 0:00:00]} 1/2-1/2

[Event "Deloitte NED-ch 2019"]
[Site "Amsterdam"]
[Date "2019.07.01"]
[Round "1.7"]
[White "Van den Doel, Erik"]
[Black "Werle, Jan"]
[Result "1/2-1/2"]
[ECO "D03"]
[WhiteElo "2605"]
[BlackElo "2555"]
[Annotator "ChessBase"]
[PlyCount "81"]
[EventDate "2019.07.01"]
[EventType "tourn"]
[EventCountry "NED"]
[SourceTitle "playchess.com"]
[Source "ChessBase"]
[SourceQuality "1"]
[TimeControl "40/5400+30:1800+30"]

1. d4 {[%emt 0:00:00]} Nf6 {[%emt 0:00:00]} 2. Nf3 {[%emt 0:00:00]} e6 {[%emt 0:00:00]} 3. Bg5 {[%emt 0:00:00]} d5 {[%emt 0:01:27]} 4. Nbd2 {[%emt 0:03:26]} Be7 {[%emt 0:01:33]} 5. e3 {[%emt 0:01:04]} h6 {[%emt 0:01:32]} 6. Bh4 {[%emt 0:17:02]} Nbd7 {[%emt 0:08:53]} 7. c4 {[%emt 0:08:12]} O-O {[%emt 0:04:28]} 8. Rc1 {[%emt 0:00:57]} c6 {[%emt 0:10:43]} 9. Bd3 {[%emt 0:10:50]} b6 {[%emt 0:13:27]} 10. O-O {[%emt 0:13:42]} Bb7 {[%emt 0:00:15]} 11. Qe2 {[%emt 0:03:17]} c5 {[%emt 0:03:52]} 12. cxd5 {[%emt 0:11:49]} exd5 {[%emt 0:05:54]} 13. dxc5 {[%emt 0:04:59]} bxc5 {[%emt 0:03:39]} 14. e4 {[%emt 0:01:16]} Re8 {[%emt 0:07:40]} 15. exd5 {[%emt 0:06:50]} Nxd5 {[%emt 0:00:42]} 16. Qe4 {[%emt 0:01:59]} g6 {[%emt 0:01:24]} 17. Bxe7 {[%emt 0:00:48]} Rxe7 {[%emt 0:08:37]} 18. Qh4 {[%emt 0:00:05]} Qf8 {[%emt 0:00:30]} 19. Rfe1 {[%emt 0:00:08]} Rae8 {[%emt 0:01:14]} 20. Bb5 {[%emt 0:00:11]} Rxe1+ {[%emt 0:03:14]} 21. Rxe1 {[%emt 0:00:19]} Rxe1+ {[%emt 0:01:13]} 22. Nxe1 {[%emt 0:00:06]} N7b6 {[%emt 0:03:46]} 23. Qe4 {[%emt 0:00:46]} Ba8 {[%emt 0:04:42]} 24. Qe5 {[%emt 0:00:47]} Qg7 {[%emt 0:03:40]} 25. Qb8+ {[%emt 0:03:55]} Kh7 {[%emt 0:01:05]} 26. Qxa7 {[%emt 0:00:04]} Qxb2 {[%emt 0:00:34]} 27. Qxf7+ {[%emt 0:00:15]} Qg7 {[%emt 0:01:18]} 28. Qe6 {[%emt 0:05:00]} Qc7 {[%emt 0:02:41]} 29. Ne4 {[%emt 0:01:02]} c4 {[%emt 0:00:41]} 30. Nc2 {[%emt 0:01:42]} Qb7 {[%emt 0:04:19]} 31. f3 {[%emt 0:02:17]} Qa7 {[%emt 0:00:26]} 32. Nd4 {[%emt 0:01:45]} Qg7 {[%emt 0:00:39]} 33. Nc2 {[%emt 0:00:27]} Qb2 {[%emt 0:00:47]} 34. Qf7+ {[%emt 0:00:25]} Kh8 {[%emt 0:00:08]} 35. Qf8+ {[%emt 0:00:08]} Kh7 {[%emt 0:00:04]} 36. Qf7+ {[%emt 0:01:09]} Kh8 {[%emt 0:00:02]} 37. Ne1 {[%emt 0:00:42]} Qxb5 {[%emt 0:01:13]} 38. Qf8+ {[%emt 0:00:32]} Kh7 {[%emt 0:00:02]} 39. Qf7+ {[%emt 0:00:29]} Kh8 {[%emt 0:00:04]} 40. Qf8+ {[%emt 0:00:48]} Kh7 {[%emt 0:00:02]} 41. Qf7+ {[%emt 0:04:10]} 1/2-1/2

[Event "Deloitte NED-ch 2019"]
[Site "Amsterdam"]
[Date "2019.07.03"]
[Round "3.1"]
[White "Van Foreest, Jorden"]
[Black "Sokolov, Ivan"]
[Result "1-0"]
[ECO "C84"]
[WhiteElo "2612"]
[BlackElo "2584"]
[Annotator "ChessBase"]
[PlyCount "79"]
[EventDate "2019.07.01"]
[EventType "tourn"]
[EventCountry "NED"]
[SourceTitle "playchess.com"]
[Source "ChessBase"]
[SourceQuality "1"]
[TimeControl "40/5400+30:1800+30"]

1. e4 {[%emt 0:00:00]} e5 {[%emt 0:19:57]} 2. Nf3 {[%emt 0:00:00]} Nc6 {[%emt 0:00:03]} 3. Bb5 {[%emt 0:00:00]} a6 {[%emt 0:00:11]} 4. Ba4 {[%emt 0:00:07]} Nf6 {[%emt 0:00:27]} 5. O-O {[%emt 0:00:20]} Be7 {[%emt 0:00:03]} 6. d3 {[%emt 0:00:13]} d6 {[%emt 0:00:40]} 7. c3 {[%emt 0:00:21]} O-O {[%emt 0:00:04]} 8. Re1 {[%emt 0:00:09]} b5 {[%emt 0:00:19]} 9. Bc2 {[%emt 0:01:11]} d5 {[%emt 0:00:04]} 10. Nbd2 {[%emt 0:01:22]} dxe4 {[%emt 0:06:31]} 11. dxe4 {[%emt 0:00:10]} Bd6 {[%emt 0:02:40]} 12. Nf1 {[%emt 0:02:22]} Ne7 {[%emt 0:00:30]} 13. a4 {[%emt 0:07:06]} Rb8 {[%emt 0:01:18]} 14. Ng3 {[%emt 0:07:23]} h6 {[%emt 0:01:57]} 15. b4 {[%emt 0:05:33]} Be6 {[%emt 0:02:43]} 16. h3 {[%emt 0:04:15]} Qc8 {[%emt 0:09:14]} 17. Nh4 {[%emt 0:10:02]} Kh8 {[%emt 0:08:14]} 18. Qf3 {[%emt 0:00:41]} Nh7 {[%emt 0:00:03]} 19. Nhf5 {[%emt 0:00:18]} Ng8 {[%emt 0:08:19]} 20. Nxg7 {[%emt 0:10:13]} Kxg7 {[%emt 0:00:02]} 21. Nh5+ {[%emt 0:00:05]} Kg6 {[%emt 0:00:02]} 22. Qg3+ {[%emt 0:01:10]} Ng5 {[%emt 0:00:02]} 23. f4 {[%emt 0:00:34]} exf4 {[%emt 0:09:01]} 24. Nxf4+ {[%emt 0:05:03]} Kh7 {[%emt 0:17:08]} 25. e5+ {[%emt 0:07:38]} Bf5 {[%emt 0:00:17]} 26. Qf2 {[%emt 0:03:56]} Be7 {[%emt 0:06:10]} 27. e6 {[%emt 0:02:40]} fxe6 {[%emt 0:03:56]} 28. h4 {[%emt 0:05:33]} Kh8 {[%emt 0:00:01]} 29. hxg5 {[%emt 0:00:08]} Bxg5 {[%emt 0:00:02]} 30. c4 {[%emt 0:01:01]} Bxc2 {[%emt 0:04:20]} 31. Bb2+ {[%emt 0:00:16]} e5 {[%emt 0:00:01]} 32. Rxe5 {[%emt 0:02:12]} Nf6 {[%emt 0:00:01]} 33. Nd5 {[%emt 0:00:18]} Bg6 {[%emt 0:01:27]} 34. Rxg5 {[%emt 0:06:14]} hxg5 {[%emt 0:00:02]} 35. Nxf6 {[%emt 0:05:01]} Qf5 {[%emt 0:00:02]} 36. Nd7+ {[%emt 0:00:45]} Kh7 {[%emt 0:00:11]} 37. Qd4 {[%emt 0:00:01]} Qf7 {[%emt 0:01:02]} 38. Nxb8 {[%emt 0:02:33]} Rxb8 {[%emt 0:00:01]} 39. Ra3 {[%emt 0:00:25]} Bh5 {[%emt 0:01:30]} 40. Rh3 {[%emt 0:00:40]} 1-0

[Event "Deloitte NED-ch 2019"]
[Site "Amsterdam"]
[Date "2019.07.03"]
[Round "3.2"]
[White "Van den Doel, Erik"]
[Black "Bok, Benjamin"]
[Result "1/2-1/2"]
[ECO "D36"]
[WhiteElo "2605"]
[BlackElo "2645"]
[Annotator "ChessBase"]
[PlyCount "40"]
[EventDate "2019.07.01"]
[EventType "tourn"]
[EventCountry "NED"]
[SourceTitle "playchess.com"]
[Source "ChessBase"]
[SourceQuality "1"]
[TimeControl "40/5400+30:1800+30"]

1. d4 {[%emt 0:00:00]} Nf6 {[%emt 0:00:33]} 2. Nf3 {[%emt 0:00:00]} d5 {[%emt 0:00:33]} 3. c4 {[%emt 0:00:00]} e6 {[%emt 0:00:20]} 4. Nc3 {[%emt 0:00:00]} c6 {[%emt 0:00:17]} 5. cxd5 {[%emt 0:00:04]} exd5 {[%emt 0:00:13]} 6. Qc2 {[%emt 0:00:05]} g6 {[%emt 0:07:58]} 7. Bg5 {[%emt 0:00:36]} Be7 {[%emt 0:00:09]} 8. e4 {[%emt 0:01:03]} dxe4 {[%emt 0:23:21]} 9. Bxf6 {[%emt 0:01:12]} Bxf6 {[%emt 0:00:58]} 10. Qxe4+ {[%emt 0:00:06]} Kf8 {[%emt 0:13:48]} 11. Bc4 {[%emt 0:05:06]} Nd7 {[%emt 0:15:14]} 12. O-O {[%emt 0:27:56]} Nb6 {[%emt 0:03:36]} 13. Bb3 {[%emt 0:01:03]} Kg7 {[%emt 0:01:33]} 14. Qf4 {[%emt 0:11:40]} Re8 {[%emt 0:08:04]} 15. Rfe1 {[%emt 0:11:41]} Rxe1+ {[%emt 0:02:47]} 16. Rxe1 {[%emt 0:00:05]} Nd5 {[%emt 0:00:04]} 17. Bxd5 {[%emt 0:06:06]} cxd5 {[%emt 0:00:09]} 18. Nb5 {[%emt 0:00:30]} Bd7 {[%emt 0:02:10]} 19. Nd6 {[%emt 0:03:21]} Be6 {[%emt 0:08:52]} 20. Nxb7 {[%emt 0:12:34]} Qb8 {[%emt 0:00:08]} 1/2-1/2

[Event "Deloitte NED-ch 2019"]
[Site "Amsterdam"]
[Date "2019.07.03"]
[Round "3.7"]
[White "Van Foreest, Lucas"]
[Black "Werle, Jan"]
[Result "1-0"]
[ECO "E02"]
[WhiteElo "2521"]
[BlackElo "2555"]
[Annotator "ChessBase"]
[PlyCount "73"]
[EventDate "2019.07.01"]
[EventType "tourn"]
[EventCountry "NED"]
[SourceTitle "playchess.com"]
[Source "ChessBase"]
[SourceQuality "1"]
[TimeControl "40/5400+30:1800+30"]

1. Nf3 {[%emt 0:00:00]} Nf6 {[%emt 0:00:03]} 2. c4 {[%emt 0:00:00]} e6 {[%emt 0:00:06]} 3. g3 {[%emt 0:00:00]} d5 {[%emt 0:00:26]} 4. Bg2 {[%emt 0:00:00]} dxc4 {[%emt 0:03:31]} 5. Qa4+ {[%emt 0:00:10]} Nbd7 {[%emt 0:00:21]} 6. Qxc4 {[%emt 0:01:53]} a6 {[%emt 0:02:16]} 7. Qc2 {[%emt 0:03:54]} c5 {[%emt 0:02:12]} 8. O-O {[%emt 0:00:21]} Be7 {[%emt 0:00:40]} 9. d4 {[%emt 0:04:10]} O-O {[%emt 0:07:00]} 10. Rd1 {[%emt 0:01:39]} Qb6 {[%emt 0:11:54]} 11. Nc3 {[%emt 0:19:50]} Qa7 {[%emt 0:04:13]} 12. e4 {[%emt 0:05:47]} cxd4 {[%emt 0:07:08]} 13. Nxd4 {[%emt 0:00:19]} Ng4 {[%emt 0:05:26]} 14. h3 {[%emt 0:18:44]} Bc5 {[%emt 0:04:04]} 15. hxg4 {[%emt 0:00:26]} Bxd4 {[%emt 0:00:05]} 16. Qd2 {[%emt 0:02:14]} e5 {[%emt 0:03:59]} 17. Nd5 {[%emt 0:00:05]} Nc5 {[%emt 0:03:02]} 18. Qe2 {[%emt 0:07:27]} Bd7 {[%emt 0:03:37]} 19. g5 {[%emt 0:03:29]} Rad8 {[%emt 0:07:50]} 20. Rxd4 {[%emt 0:00:20]} exd4 {[%emt 0:00:05]} 21. Qh5 {[%emt 0:00:08]} Kh8 {[%emt 0:06:00]} 22. Bf4 {[%emt 0:02:05]} Nd3 {[%emt 0:04:04]} 23. Bc7 {[%emt 0:02:46]} Be6 {[%emt 0:04:48]} 24. Bb6 {[%emt 0:02:20]} Qb8 {[%emt 0:00:13]} 25. Bxd4 {[%emt 0:00:04]} Bxd5 {[%emt 0:02:46]} 26. exd5 {[%emt 0:00:27]} Rde8 {[%emt 0:01:25]} 27. Rd1 {[%emt 0:03:53]} Ne5 {[%emt 0:01:30]} 28. Be4 {[%emt 0:02:27]} Ng6 {[%emt 0:01:37]} 29. Bf3 {[%emt 0:02:49]} Ne5 {[%emt 0:04:50]} 30. Kg2 {[%emt 0:00:49]} Qd6 {[%emt 0:08:50]} 31. Be4 {[%emt 0:01:11]} h6 {[%emt 0:00:07]} 32. Rh1 {[%emt 0:02:51]} Kg8 {[%emt 0:01:15]} 33. f4 {[%emt 0:03:29]} Nc6 {[%emt 0:00:31]} 34. gxh6 {[%emt 0:01:05]} Qxh6 {[%emt 0:00:22]} 35. Bh7+ {[%emt 0:00:53]} Kh8 {[%emt 0:00:32]} 36. Qxh6 {[%emt 0:00:10]} Re2+ {[%emt 0:00:25]} 37. Kf1 {[%emt 0:00:16]} 1-0

[Event "Deloitte NED-ch 2019"]
[Site "Amsterdam"]
[Date "2019.07.04"]
[Round "4.1"]
[White "L'Ami, Erwin"]
[Black "Van den Doel, Erik"]
[Result "1/2-1/2"]
[ECO "D20"]
[WhiteElo "2633"]
[BlackElo "2605"]
[Annotator "RC"]
[PlyCount "116"]
[EventDate "2019.07.01"]
[EventType "tourn"]
[EventCountry "NED"]
[SourceTitle "playchess.com"]
[Source "ChessBase"]
[SourceQuality "1"]
[TimeControl "40/5400+30:1800+30"]

1. d4 {[%emt 0:00:00]} d5 {[%emt 0:00:00]} 2. c4 {[%emt 0:00:00]} dxc4 {[%emt 0:00:00]} 3. e4 {[%emt 0:00:00]} Nf6 {[%emt 0:00:00]} 4. e5 {[%emt 0:00:03]} Nd5 {[%emt 0:00:00]} 5. Bxc4 {[%emt 0:00:12]} Nb6 {[%emt 0:00:09]} 6. Bd3 {[%emt 0:00:17]} Nc6 {[%emt 0:00:11]} 7. Be3 {[%emt 0:00:11]} Nb4 {[%emt 0:02:51]} 8. Be4 {[%emt 0:00:16]} N4d5 {[%emt 0:01:16]} 9. Nc3 {[%emt 0:03:15]} Be6 {[%emt 0:00:42]} 10. Nf3 {[%emt 0:03:11]} Qd7 {[%emt 0:23:05]} 11. Ng5 {[%emt 0:09:11]} Bg4 {[%emt 0:08:08]} 12. Bxd5 {[%emt 0:12:36]} Nxd5 {[%emt 0:10:11]} 13. Qb3 {[%emt 0:01:42]} c6 {[%emt 0:00:35]} 14. h3 {[%emt 0:03:00]} Bf5 {[%emt 0:09:27]} 15. Nxd5 {[%emt 0:10:10]} cxd5 {[%emt 0:21:56]} 16. g4 {[%emt 0:02:24]} h6 {[%emt 0:01:24]} 17. Nxf7 {[%emt 0:04:21]} Kxf7 {[%emt 0:00:07]} 18. gxf5 {[%emt 0:00:09]} Qxf5 {[%emt 0:00:02]} 19. Qxd5+ {[%emt 0:10:05]} e6 {[%emt 0:00:13]} 20. Qxb7+ {[%emt 0:04:51]} Be7 {[%emt 0:00:33]} 21. Rg1 {[%emt 0:02:44]} g5 {[%emt 0:05:17]} 22. Rg3 {[%emt 0:07:18]} Rab8 {[%emt 0:00:31]} 23. Qf3 {[%emt 0:03:27]} Rxb2 {[%emt 0:01:01]} 24. Rc1 {[%emt 0:02:53]} Rhb8 {[%emt 0:04:12]} 25. Kf1 {[%emt 0:03:44]} Qxf3 {[%emt 0:05:01]} 26. Rxf3+ {[%emt 0:00:06]} Ke8 {[%emt 0:00:03]} 27. d5 {[%emt 0:03:40]} Rxa2 {[%emt 0:02:02]} 28. Rc6 {[%emt 0:06:48]} Rb1+ {[%emt 0:01:53]} 29. Kg2 {[%emt 0:00:05]} Raa1 {[%emt 0:00:05]} 30. Rf6 {[%emt 0:01:04]} Bxf6 {[%emt 0:00:37]} 31. Rxe6+ {[%emt 0:04:08]} Be7 {[%emt 0:00:04]} 32. d6 {[%emt 0:00:16]} Rb7 {[%emt 0:00:11]} 33. Rxh6 {[%emt 0:01:12]} Bf8 {[%emt 0:01:48]} 34. Rh8 {[%emt 0:01:10]} Kf7 {[%emt 0:02:04]} 35. e6+ {[%emt 0:01:13]} Kxe6 {[%emt 0:00:13]} 36. Rxf8 {[%emt 0:00:05]} Kxd6 {[%emt 0:01:02]} 37. Bxg5 {[%emt 0:00:26]} a5 {[%emt 0:00:17]} 38. Ra8 {[%emt 0:00:58]} a4 {[%emt 0:00:15]} 39. h4 {[%emt 0:00:15]} Rb4 {[%emt 0:01:07]} 40. Bf6 {[%emt 0:01:48]} Ra3 {[%emt 0:00:27]} 41. f3 {[%emt 0:07:15]} Rf4 {[%emt 0:16:20]} 42. Ra6+ {[%emt 0:02:46]} Kd5 {[%emt 0:02:13]} 43. Be7 {[%emt 0:02:36]} Rb3 {[%emt 0:02:22]} 44. Bg5 {[%emt 0:01:39]} Rfxf3 {[%emt 0:01:06]} 45. Rxa4 {[%emt 0:00:35]} Rfc3 {[%emt 0:01:18]} 46. Rf4 {[%emt 0:01:12]} Ke5 {[%emt 0:00:22]} 47. Rf8 {[%emt 0:00:28]} Rg3+ {[%emt 0:01:00]} 48. Kf2 {[%emt 0:00:25]} Rh3 {[%emt 0:00:32]} 49. Kg2 {[%emt 0:00:20]} Rhd3 {[%emt 0:00:37]} 50. Rf7 {[%emt 0:00:08]} Rd1 {[%emt 0:00:40]} 51. Rf2 {[%emt 0:00:49]} Rbb1 {[%emt 0:00:31]} 52. Rf6 {[%emt 0:02:39]} Rg1+ {[%emt 0:00:54]} 53. Kh2 {[%emt 0:00:15]} Rh1+ {[%emt 0:00:34]} 54. Kg2 {[%emt 0:00:09]} Rbg1+ {[%emt 0:00:17]} 55. Kf2 {[%emt 0:00:06]} Rg4 {[%emt 0:00:25]} 56. Ra6 {[%emt 0:00:25]} Rb4 {[%emt 0:04:09]} 57. Kg2 {[%emt 0:00:16]} Rbb1 {[%emt 0:00:06]} 58. Rf6 {[%emt 0:00:47]} Rhg1+ {[%emt 0:02:40]} 1/2-1/2